bitfinex-derivatives/quotes_SOLF0:USTF0_20241229
["timestamp","ask_amount","ask_price","bid_price","bid_amount"]
[1735434696184,7.1134823,193.75,193.72,3.0]
[1735434697088,92.96810019,193.78,193.72,3.0]
[1735434697089,36.61807944,193.78,193.72,3.0]
[1735434697288,8.16415023,193.77,193.72,3.0]
[1735434697490,2.5854,193.73,193.72,3.0]
[1735434700487,8.16415023,193.73,193.68,3.0]
[1735434700894,8.16415023,193.73,193.66,3.0]
[1735434701090,8.16415023,193.71,193.65,3.0]
[1735434702091,2.5864,193.65,193.64,8.16415023]
[1735434702397,2.5864,193.65,193.63,3.0]
[1735434702596,2.5864,193.65,193.63,11.16415023]
[1735434707591,8.16415023,193.71,193.63,3.0]
[1735434707794,2.5866,193.64,193.63,11.16415023]
[1735434708297,8.16415023,193.71,193.63,11.16415023]
[1735434708499,2.5865,193.65,193.63,11.16415023]
[1735434710893,8.16415023,193.71,193.63,11.16415023]
[1735434711094,2.5861,193.68,193.65,8.16415023]
[1735434711299,7.1134823,193.72,193.65,8.16415023]
[1735434712202,15.27763253,193.73,193.65,8.16415023]
[1735434712402,2.5862,193.67,193.65,8.16415023]
[1735434712903,2.5862,193.67,193.63,3.0]
[1735434713203,2.5862,193.67,193.66,8.16415023]
[1735434721907,28.45392921,193.73,193.66,8.16415023]
[1735434722113,28.45392921,193.73,193.72,8.16415023]
[1735434722407,31.03942921,193.73,193.72,11.12415023]
[1735434722811,2.5855,193.73,193.72,11.12415023]
[1735434724519,2.5853,193.74,193.72,11.12415023]
[1735434724710,2.5853,193.74,193.73,8.16415023]
[1735434726317,2.5854,193.73,193.72,11.12415023]
[1735434727014,8.16415023,193.79,193.72,11.12415023]
[1735434727216,2.5853,193.74,193.72,11.12415023]
[1735434728117,8.16415023,193.79,193.72,2.96]
[1735434728317,2.5854,193.73,193.72,2.96]
[1735434728618,8.16415023,193.79,193.71,8.16415023]
[1735434728812,8.16415023,193.75,193.67,3.1431]
[1735434729017,8.16415023,193.75,193.68,8.16415023]
[1735434729219,8.16415023,193.73,193.67,3.1431]
[1735434729419,2.5862,193.67,193.66,11.12415023]
[1735434731122,2.5862,193.67,193.66,2.96]
[1735434732722,8.16415023,193.71,193.64,8.16415023]
[1735434732723,2.5864,193.66,193.64,8.16415023]
[1735434732917,2.5864,193.66,193.64,11.12415023]
[1735434733418,8.16415023,193.71,193.64,2.96]
[1735434733619,2.5864,193.65,193.64,11.12415023]
[1735434733820,8.16415023,193.71,193.64,11.12415023]
[1735434734118,2.5863,193.67,193.66,8.16415023]
[1735434744723,2.5864,193.65,193.64,2.96]
[1735434744924,2.5864,193.65,193.64,11.12415023]
[1735434745615,2.5864,193.65,193.64,2.96]
[1735434745816,2.5864,193.65,193.64,11.12415023]
[1735434746923,2.5864,193.65,193.64,8.16415023]
[1735434749724,2.5863,193.66,193.64,8.16415023]
[1735434749924,2.5863,193.66,193.65,8.16415023]
[1735434756334,2.5862,193.67,193.65,8.16415023]
[1735434756523,28.45392921,193.73,193.65,8.16415023]
[1735434756727,28.45392921,193.73,193.7,8.16415023]
[1735434756924,28.45392921,193.73,193.69,2.96]
[1735434757130,28.45392921,193.73,193.72,8.16415023]
[1735434757328,31.03942921,193.73,193.72,8.16415023]
[1735434757530,28.45392921,193.73,193.72,8.16415023]
[1735434757930,28.45392921,193.78,193.72,8.16415023]
[1735434758829,62.38336539,193.79,193.72,8.16415023]
[1735434759633,2.5854,193.73,193.72,8.16415023]
[1735434762034,2.5853,193.74,193.72,8.16415023]
[1735434762735,2.5854,193.73,193.72,8.16415023]
[1735434772140,82.67314437,193.79,193.72,8.16415023]
[1735434772337,82.67314437,193.79,193.75,8.16415023]
[1735434772639,54.21921516,193.79,193.75,8.16415023]
[1735434773249,2.585,193.76,193.75,8.16415023]
[1735434774746,2.5847,193.79,193.75,8.16415023]
[1735434775049,2.5847,193.79,193.77,8.16415023]
[1735434777448,2.5847,193.78,193.77,8.16415023]
[1735434780846,8.16415023,193.84,193.74,2.96]
[1735434781150,7.1134823,193.85,193.74,2.96]
[1735434781347,8.16415023,193.83,193.76,8.16415023]
[1735434781642,2.5848,193.77,193.76,8.16415023]
[1735434788853,36.61807944,193.83,193.74,8.16415023]
[1735434789053,2.5851,193.75,193.74,8.16415023]
[1735434793063,2.585,193.77,193.74,8.16415023]
[1735434793354,28.45392921,193.8,193.76,8.16415023]
[1735434793355,7.1134823,193.8,193.76,8.16415023]
[1735434793660,7.1134823,193.8,193.78,8.16415023]
[1735434793857,2.5846,193.79,193.78,8.16415023]
[1735434794658,2.5845,193.8,193.78,11.12415023]
[1735434794858,2.5845,193.8,193.79,8.16415023]
[1735434803569,8.16415023,193.83,193.74,1.5472]
[1735434803868,8.16415023,193.81,193.74,8.16415023]
[1735434804066,2.5849,193.77,193.71,2.96]
[1735434804267,8.16415023,193.79,193.72,8.16415023]
[1735434805465,2.5854,193.73,193.72,8.16415023]
[1735434811369,2.5855,193.72,193.71,2.96]
[1735434811570,2.5855,193.72,193.71,11.12415023]
[1735434812076,2.5855,193.72,193.71,2.96]
[1735434812265,2.5855,193.72,193.71,11.12415023]
[1735434812774,8.16415023,193.77,193.7,8.16415023]
[1735434812970,2.5856,193.71,193.7,8.16415023]
[1735434813571,8.16415023,193.75,193.69,2.96]
[1735434813873,2.5858,193.7,193.69,2.96]
[1735434815878,8.16415023,193.75,193.68,8.16415023]
[1735434816073,8.16415023,193.75,193.69,8.16415023]
[1735434817579,2.5858,193.7,193.69,8.16415023]
[1735434820383,2.586,193.68,193.67,11.12415023]
[1735434825082,2.586,193.68,193.67,8.16415023]
[1735434835588,2.5865,193.65,193.62,5.5468]
[1735434835782,56.79952444,193.73,193.64,8.16415023]
[1735434836188,56.79952444,193.73,193.66,8.16415023]
[1735434837582,2.5862,193.67,193.66,8.16415023]
[1735434838082,2.586,193.69,193.66,8.16415023]
[1735434838388,2.586,193.69,193.68,8.16415023]
[1735434843184,48.63537421,193.73,193.64,1.5715]
[1735434843390,2.5864,193.66,193.64,1.5715]
[1735434843890,2.5864,193.65,193.64,1.5715]
[1735434845389,2.5864,193.65,193.64,9.73565023]
[1735434846282,2.5866,193.64,193.63,2.96]
[1735434846784,2.5871,193.61,193.58,2.5874]
[1735434846988,8.16415023,193.69,193.6,8.16415023]
[1735434847186,8.16415023,193.67,193.6,8.16415023]
[1735434847585,2.587,193.61,193.6,8.16415023]
[1735434852090,2.5873,193.59,193.56,4.1079]
[1735434852291,2.5873,193.59,193.58,2.96]
[1735434852484,2.5873,193.59,193.58,11.12415023]
[1735434853190,2.5873,193.59,193.58,2.96]
[1735434854793,2.5868,193.63,193.58,2.96]
[1735434854992,2.5868,193.63,193.61,8.16415023]
[1735434858792,8.16415023,193.69,193.61,8.16415023]
[1735434859096,2.5865,193.65,193.63,8.16415023]
[1735434859795,8.16415023,193.69,193.61,2.5869]
[1735434859996,2.5866,193.64,193.62,8.16415023]
[1735434861791,2.5863,193.67,193.63,5.5467]
[1735434862103,2.5863,193.67,193.65,8.16415023]
[1735434862601,7.1134823,193.72,193.65,8.16415023]
[1735434862799,7.1134823,193.72,193.67,8.16415023]
[1735434863097,56.79952444,193.73,193.67,8.16415023]
[1735434863295,48.63537421,193.73,193.67,8.16415023]
[1735434863497,48.63537421,193.73,193.69,8.16415023]
[1735434864396,2.5858,193.7,193.69,8.16415023]
[1735434866196,48.63537421,193.73,193.65,2.5864]
[1735434866197,48.63537421,193.73,193.67,8.16415023]
[1735434866501,2.586,193.69,193.67,8.16415023]
[1735434868095,2.586,193.68,193.67,8.16415023]
[1735434868401,8.16415023,193.72,193.65,8.16415023]
[1735434869400,2.5862,193.67,193.65,8.16415023]
[1735434871105,2.5863,193.66,193.64,7.6506]
[1735434871306,2.5863,193.66,193.64,15.81475023]
[1735434873008,2.5863,193.66,193.64,7.6506]
[1735434873203,8.16415023,193.7,193.53,33.40200628]
[1735434873410,8.16415023,193.68,193.54,7.5632]
[1735434873709,8.16415023,193.68,193.6,8.16415023]
[1735434874106,2.587,193.61,193.6,8.16415023]
[1735434874403,8.16415023,193.66,193.59,8.16415023]
[1735434874905,28.45392921,193.71,193.59,8.16415023]
[1735434875206,28.45392921,193.71,193.58,2.96]
[1735434875207,2.5871,193.6,193.58,2.96]
[1735434875609,2.5862,193.68,193.58,5.5473]
[1735434875808,8.16415023,193.68,193.58,5.5473]
[1735434876610,8.16415023,193.68,193.61,8.16415023]
[1735434877206,8.16415023,193.68,193.58,2.96]
[1735434877207,7.1134823,193.69,193.63,8.16415023]
[1735434877413,8.16415023,193.7,193.63,8.16415023]
[1735434877708,8.16415023,193.7,193.63,11.12415023]
[1735434878408,2.5865,193.65,193.63,11.12415023]
[1735434879511,7.1134823,193.71,193.63,2.96]
[1735434879708,2.5866,193.64,193.63,2.96]
[1735434879909,2.5866,193.64,193.63,11.12415023]
[1735434885613,8.16415023,193.68,193.55,1.601]
[1735434885814,8.16415023,193.68,193.6,8.16415023]
[1735434886914,28.45392921,193.7,193.62,8.16415023]
[1735434887112,8.16415023,193.69,193.62,8.16415023]
[1735434887313,8.16415023,193.69,193.6,8.16415023]
[1735434887714,2.587,193.61,193.6,8.16415023]
[1735434896527,2.5873,193.59,193.56,2.96]
[1735434896728,2.5873,193.59,193.58,8.16415023]
[1735434898326,2.5872,193.6,193.58,8.16415023]
[1735434898526,8.16415023,193.68,193.59,8.16415023]
[1735434898722,8.16415023,193.68,193.61,8.16415023]
[1735434899132,2.5868,193.62,193.61,8.16415023]
[1735434902932,7.1134823,193.69,193.61,8.16415023]
[1735434903137,7.1134823,193.69,193.66,8.16415023]
[1735434903535,2.5862,193.68,193.66,8.16415023]
[1735434903836,7.1134823,193.69,193.66,8.16415023]
[1735434904437,2.5862,193.67,193.66,8.16415023]
[1735434904635,7.1134823,193.69,193.66,8.16415023]
[1735434905240,2.5862,193.68,193.66,8.16415023]
[1735434905733,55.74885651,193.73,193.66,8.16415023]
[1735434906538,2.5862,193.67,193.66,8.16415023]
[1735434906938,55.74885651,193.73,193.64,4.5343]
[1735434907138,2.5864,193.65,193.64,4.5343]
[1735434910234,2.5864,193.65,193.64,2.96]
[1735434910439,2.5864,193.65,193.54,3.1267]
[1735434910440,2.5871,193.6,193.55,1.6231]
[1735434910640,2.5871,193.6,193.59,8.16415023]
[1735434911936,2.587,193.61,193.59,8.16415023]
[1735434913141,2.587,193.61,193.59,11.12415023]
[1735434916938,7.1134823,193.69,193.59,11.12415023]
[1735434917243,7.1134823,193.69,193.65,8.16415023]
[1735434917645,2.5863,193.66,193.65,8.16415023]
[1735434923946,2.5879,193.54,193.5,21.54882822]
[1735434924152,2.96,193.65,193.5,21.54882822]
[1735434924350,8.16415023,193.61,193.54,8.16415023]
[1735434924848,2.96,193.65,193.54,8.16415023]
[1735434925152,8.16415023,193.63,193.54,8.16415023]
[1735434927547,2.5875,193.58,193.54,8.16415023]
[1735434930152,7.1134823,193.66,193.54,8.16415023]
[1735434930352,7.1134823,193.66,193.6,8.16415023]
[1735434930744,7.1134823,193.66,193.62,8.16415023]
[1735434931454,2.5865,193.65,193.62,8.16415023]
[1735434931852,7.1134823,193.7,193.62,8.16415023]
[1735434931853,2.5863,193.66,193.62,8.16415023]
[1735434932049,8.16415023,193.64,193.32,268.71863175]
[1735434932350,2.96,193.65,193.54,8.16415023]
[1735434932555,8.16415023,193.63,193.54,8.16415023]
[1735434933557,8.16415023,193.61,193.54,8.16415023]
[1735434933758,2.5878,193.55,193.54,8.16415023]
[1735434935959,2.5877,193.56,193.54,8.16415023]
[1735434936261,28.45392921,193.66,193.54,8.16415023]
[1735434936559,2.5869,193.62,193.58,8.16415023]
[1735434936764,2.5869,193.62,193.6,8.16415023]
[1735434936965,28.45392921,193.66,193.6,8.16415023]
[1735434937167,28.45392921,193.66,193.62,8.16415023]
[1735434937854,8.16415023,193.63,193.44,2.98]
[1735434938059,8.16415023,193.62,193.54,8.16415023]
[1735434938260,8.16415023,193.62,193.54,4.16415023]
[1735434938555,2.98,193.67,193.54,4.16415023]
[1735434938754,8.16415023,193.63,193.54,4.16415023]
[1735434938961,7.1134823,193.66,193.56,8.16415023]
[1735434939162,8.16415023,193.65,193.56,11.14415023]
[1735434940161,2.5872,193.6,193.56,11.14415023]
[1735434940658,2.5872,193.6,193.58,8.16415023]
[1735434941163,8.16415023,193.65,193.58,8.16415023]
[1735434941555,2.587,193.62,193.58,8.16415023]
[1735434941957,2.587,193.62,193.6,8.16415023]
[1735434942368,8.16415023,193.61,193.41,21.54882822]
[1735434942560,8.16415023,193.57,193.49,8.16415023]
[1735434942758,8.16415023,193.58,193.49,8.16415023]
[1735434942967,8.16415023,193.58,193.51,8.16415023]
[1735434943771,2.5877,193.56,193.51,8.16415023]
[1735434944073,8.16415023,193.58,193.51,8.16415023]
[1735434944567,2.5882,193.52,193.51,8.16415023]
[1735434944767,7.1134823,193.63,193.51,8.16415023]
[1735434944963,7.1134823,193.63,193.46,3.035]
[1735434944964,2.5875,193.58,193.56,8.16415023]
[1735434945175,28.45392921,193.63,193.56,8.16415023]
[1735434945363,36.61807944,193.63,193.56,8.16415023]
[1735434945674,8.16415023,193.63,193.56,8.16415023]
[1735434946273,12.84159588,193.58,193.47,2.98]
[1735434946974,2.5886,193.5,193.47,2.98]
[1735434947674,2.5886,193.5,193.46,3.035]
[1735434947876,2.5886,193.5,193.47,2.98]
[1735434948469,12.84159588,193.58,193.47,2.98]
[1735434948675,2.5886,193.49,193.47,2.98]
[1735434948880,12.84159588,193.58,193.47,2.98]
[1735434949174,2.5883,193.52,193.47,2.98]
[1735434949971,2.5883,193.52,193.47,5.5688]
[1735434951065,2.5884,193.51,193.47,5.5688]
[1735434953774,2.5884,193.51,193.48,2.5887]
[1735434954072,2.5884,193.51,193.48,12.84159588]
[1735434956575,2.5884,193.51,193.48,15.43029588]
[1735434960777,2.98,193.6,193.48,2.5887]
[1735434960778,2.5882,193.52,193.48,2.5887]
[1735434960982,2.5882,193.52,193.48,15.43029588]
[1735434961576,2.98,193.6,193.48,12.84159588]
[1735434961577,12.84159588,193.58,193.48,12.84159588]
[1735434961882,12.84159588,193.58,193.46,6.015]
[1735434964183,2.5885,193.5,193.46,6.015]
[1735434964379,2.5885,193.5,193.46,3.035]
[1735434964580,2.5885,193.5,193.47,3.14]
[1735434965286,12.84159588,193.58,193.47,3.14]
[1735434965488,2.5882,193.52,193.48,2.5886]
[1735434966086,2.5882,193.52,193.48,15.43019588]
[1735434966382,2.5882,193.52,193.51,8.21648982]
[1735434967478,2.5882,193.52,193.49,8.21648982]
[1735434968384,8.21648982,193.58,193.49,8.21648982]
[1735434968590,2.5883,193.51,193.49,8.21648982]
[1735434969189,8.21648982,193.58,193.49,8.21648982]
[1735434969388,2.5882,193.52,193.49,8.21648982]
[1735434969993,2.5882,193.52,193.49,10.80508982]
[1735434971989,2.5882,193.52,193.49,8.21648982]
[1735434974991,2.5884,193.51,193.49,8.21648982]
[1735434975186,8.21648982,193.54,193.46,11.25148982]
[1735434975593,2.5887,193.48,193.46,11.25148982]
[1735434976297,2.589,193.47,193.44,3.14]
[1735434976587,2.589,193.47,193.46,8.21648982]
[1735434978590,8.21648982,193.54,193.46,8.21648982]
[1735434978796,2.5886,193.49,193.46,10.80548982]
[1735434979586,2.5886,193.49,193.46,8.21648982]
[1735434980191,2.5886,193.49,193.46,11.35648982]
[1735434981792,2.5894,193.43,193.42,2.13913376]
[1735434981990,8.21648982,193.46,193.34,85.9834527]
[1735434982190,8.21648982,193.44,193.36,29.76531804]
[1735434982487,2.5898,193.4,193.38,8.21648982]
[1735434982685,8.21648982,193.44,193.38,8.21648982]
[1735434982686,3.14,193.47,193.38,8.21648982]
[1735434982889,8.21648982,193.46,193.38,8.21648982]
[1735434983297,2.5897,193.41,193.38,8.21648982]
[1735434984397,2.5898,193.4,193.38,8.21648982]
[1735434985693,2.5897,193.41,193.38,8.21648982]
[1735434986000,8.21648982,193.46,193.35,2.5904]
[1735434986189,2.5898,193.41,193.38,8.21648982]
[1735434987998,2.5898,193.4,193.38,8.21648982]
[1735435001504,2.5898,193.4,193.36,5.6903]
[1735435001710,2.5898,193.4,193.37,8.21648982]
[1735435005216,8.21648982,193.43,193.35,3.1]
[1735435005416,8.21648982,193.43,193.36,8.21648982]
[1735435008009,2.5908,193.33,193.29,2.5912]
[1735435008215,8.21648982,193.41,193.32,8.21648982]
[1735435008415,8.21648982,193.41,193.34,8.21648982]
[1735435008615,2.5899,193.39,193.34,8.21648982]
[1735435008814,8.21648982,193.41,193.34,8.21648982]
[1735435009308,8.21648982,193.41,193.3,3.1]
[1735435009506,2.5908,193.33,193.31,8.21648982]
[1735435010718,2.5908,193.33,193.29,2.5912]
[1735435010912,2.5908,193.33,193.3,8.21648982]
[1735435019515,2.5914,193.28,193.27,2.11538396]
[1735435019720,13.76134986,193.41,193.25,8.21648982]
[1735435019920,7.1134823,193.42,193.25,8.21648982]
[1735435019921,8.21648982,193.34,193.25,8.21648982]
[1735435020123,8.21648982,193.36,193.27,8.21648982]
[1735435020317,3.1,193.38,193.27,8.21648982]
[1735435020620,28.45392921,193.36,193.29,8.21648982]
[1735435021021,2.5906,193.34,193.27,2.5914]
[1735435021222,8.21648982,193.33,193.23,3.1]
[1735435021417,8.21648982,193.31,193.23,8.21648982]
[1735435021819,2.5917,193.27,193.21,2.5922]
[1735435022021,2.5917,193.27,193.16,21.54882822]
[1735435022022,8.21648982,193.23,193.16,21.54882822]
[1735435022222,2.5929,193.17,193.16,21.54882822]
[1735435022624,8.21648982,193.18,193.1,29.76531804]
[1735435022921,2.5935,193.12,193.1,29.76531804]
[1735435023117,2.5935,193.12,193.1,21.54882822]
[1735435023519,2.5933,193.14,193.1,29.76531804]
[1735435023722,2.5933,193.14,193.1,8.21648982]
[1735435024620,45.09502329,193.25,193.12,8.21648982]
[1735435024927,7.1134823,193.28,193.19,8.21648982]
[1735435025127,7.1134823,193.28,193.21,8.21648982]
[1735435025327,28.45392921,193.26,193.23,8.21648982]
[1735435025523,28.45392921,193.26,193.18,4.6608]
[1735435025723,28.45392921,193.26,193.22,8.21648982]
[1735435026119,28.45392921,193.26,193.24,8.21648982]
[1735435026327,141.3399166,193.3,193.21,3.32]
[1735435026328,8.21648982,193.32,193.21,3.32]
[1735435026523,8.21648982,193.3,193.22,8.21648982]
[1735435027227,8.21648982,193.3,193.03,21.54882822]
[1735435027228,8.21648982,193.28,193.06,21.54882822]
[1735435027529,8.21648982,193.2,193.13,8.21648982]
[1735435028432,16.20742509,193.23,193.1,12.88742509]
[1735435028626,12.88742509,193.2,193.05,3.32]
[1735435028821,12.88742509,193.2,193.07,12.88742509]
[1735435031533,2.5931,193.16,193.1,2.5938]
[1735435034138,2.5931,193.16,193.11,2.5937]
[1735435035239,2.593,193.17,193.1,2.5938]
[1735435035533,12.88742509,193.2,193.1,2.5938]
[1735435036239,2.5931,193.16,193.1,12.88742509]
[1735435036534,2.5931,193.16,193.11,5.9137]
[1735435038438,2.5925,193.2,193.14,2.5932]
[1735435038639,12.88742509,193.23,193.14,2.5932]
[1735435041442,2.5926,193.19,193.14,2.5932]
[1735435043746,12.88742509,193.23,193.12,4.7604]
[1735435044045,2.5925,193.2,193.16,2.5929]
[1735435045135,12.88742509,193.23,193.11,3.32]
[1735435045341,2.5933,193.15,193.08,3.32]
[1735435045543,2.5933,193.15,193.09,3.32]
[1735435046044,12.88742509,193.19,193.09,3.32]
[1735435046244,2.5933,193.14,193.11,2.5937]
[1735435046746,2.5933,193.14,193.1,2.5938]
[1735435047446,12.88742509,193.16,193.03,17.60712509]
[1735435047847,12.88742509,193.16,193.04,3.32]
[1735435048349,12.88742509,193.16,193.05,2.5945]
[1735435048545,12.88742509,193.13,193.04,3.32]
[1735435048758,2.5941,193.09,193.04,5.9145]
[1735435049251,12.88742509,193.13,193.03,3.0825]
[1735435049438,2.5944,193.06,193.03,6.4025]
[1735435049844,2.5944,193.06,193.03,3.0825]
[1735435050351,2.5944,193.06,193.01,3.32]
[1735435050546,2.5944,193.06,193.02,2.5949]
[1735435054453,2.5944,193.06,193.01,5.9349]
[1735435054654,2.5944,193.06,193.01,3.34]
[1735435055352,12.88742509,193.1,193.01,3.34]
[1735435055553,2.5945,193.05,193.01,5.935]
[1735435055851,2.5945,193.05,193.01,3.34]
[1735435057656,2.5945,193.05,193.02,2.5949]
[1735435060255,2.5945,193.05,193.03,8.25681678]
[1735435062455,8.25681678,193.04,192.98,3.0398]
[1735435062755,8.25681678,193.02,192.98,3.0398]
[1735435063460,2.595,193.01,192.98,3.0398]
[1735435064059,8.25681678,193.04,192.99,8.25681678]
[1735435064255,12.90382843,193.1,193.0,2.595]
[1735435065752,12.90382843,193.1,192.98,3.0398]
[1735435065957,20.01731073,193.13,193.0,12.90382843]
[1735435066156,2.5938,193.1,193.0,12.90382843]
[1735435066366,12.90382843,193.13,193.05,2.5944]
[1735435066863,2.5939,193.1,193.05,2.5944]
[1735435068260,2.594,193.09,193.05,2.5944]
[1735435069359,2.594,193.09,193.04,3.34]
[1735435069564,2.5937,193.11,193.05,3.1465]
[1735435069760,13.16909843,193.16,193.05,4.7618]
[1735435071468,2.5936,193.12,193.08,2.594]
[1735435071668,0.26527,193.16,193.06,12.90382843]
[1735435072069,2.85827,193.16,193.06,12.90382843]
[1735435072368,0.26527,193.16,193.06,12.90382843]
[1735435073064,13.16909843,193.16,193.07,3.34]
[1735435073667,13.16909843,193.16,193.07,5.9342]
[1735435073868,13.16909843,193.16,193.07,3.34]
[1735435074066,13.16909843,193.16,193.05,4.7618]
[1735435074067,13.16909843,193.16,193.06,3.34]
[1735435074269,2.5938,193.1,193.06,5.9343]
[1735435075070,12.90382843,193.15,193.06,3.34]
[1735435075369,2.5942,193.08,193.06,3.34]
[1735435076672,12.90382843,193.14,193.06,3.34]
[1735435078571,2.5938,193.11,193.07,2.5942]
[1735435080771,0.26527,193.16,193.06,16.24382843]
[1735435081175,2.85837,193.16,193.11,2.5935]
[1735435083579,2.5932,193.15,193.12,3.26]
[1735435086377,2.5932,193.15,193.12,6.4824]
[1735435086771,2.593,193.16,193.13,8.24999468]
[1735435086973,8.24999468,193.15,193.06,8.24999468]
[1735435087181,8.24999468,193.11,193.06,3.26]
[1735435088083,2.594,193.09,193.06,3.26]
[1735435088377,12.89490667,193.17,193.06,3.26]
[1735435088578,12.89490667,193.17,193.07,3.1437]
[1735435088978,2.5937,193.12,193.08,2.594]
[1735435089578,2.594,193.09,193.07,3.1437]
[1735435091077,2.5938,193.11,193.07,5.7379]
[1735435091271,2.5938,193.11,193.07,3.1437]
[1735435091675,2.5936,193.12,193.08,2.594]
[1735435093380,12.89490667,193.17,193.08,2.594]
[1735435093579,2.5937,193.11,193.08,2.594]
[1735435095175,2.5936,193.12,193.08,2.594]
[1735435096382,12.89490667,193.2,193.07,3.1437]
[1735435096575,12.89490667,193.2,193.09,12.89490667]
[1735435096884,2.5928,193.18,193.12,2.5935]
[1735435097071,28.45392921,193.21,193.12,5.8535]
[1735435097879,2.5932,193.15,193.12,3.26]
[1735435098078,12.89490667,193.16,193.05,1.6153]
[1735435098286,12.89490667,193.16,193.05,4.8753]
[1735435098478,2.5942,193.08,193.05,4.8753]
[1735435105590,2.5946,193.05,193.03,3.26]
[1735435105793,12.89490667,193.12,193.01,1.5273]
[1735435106086,2.5947,193.04,193.01,4.7873]
[1735435107288,2.5947,193.04,193.01,7.3823]
[1735435108394,2.5947,193.04,193.01,4.7873]
[1735435109798,2.5947,193.04,193.01,7.3823]
[1735435110199,12.89490667,193.12,193.01,4.7873]
[1735435111294,2.5946,193.05,193.01,7.3823]
[1735435113102,8.25950625,193.06,193.01,1.5273]
[1735435113399,8.25950625,193.04,192.98,4.8289]
[1735435114298,2.5952,193.0,192.98,4.8289]
[1735435114694,8.25950625,193.0,192.87,21.54882822]
[1735435114889,2.5957,192.97,192.93,8.25950625]
[1735435115091,2.5957,192.97,192.92,2.5962]
[1735435115291,8.25950625,193.0,192.93,8.25950625]
[1735435115696,8.25950625,193.0,192.93,11.47950625]
[1735435116402,12.91376013,193.03,192.93,5.8161]
[1735435116796,2.5954,192.98,192.93,3.22]
[1735435118099,2.5954,192.98,192.93,5.8161]
[1735435124206,2.5958,192.95,192.93,3.22]
[1735435124606,12.91376013,193.03,192.93,3.22]
[1735435125108,2.5959,192.95,192.93,3.22]
[1735435126699,2.5959,192.95,192.91,2.5962]
[1735435126899,2.5959,192.95,192.92,3.22]
[1735435129510,2.5957,192.96,192.92,5.8162]
[1735435130405,2.5952,193.0,192.92,5.8162]
[1735435130610,12.91376013,193.03,192.92,5.8162]
[1735435131003,2.5958,192.96,192.92,5.8162]
[1735435133512,2.5958,192.95,192.93,3.22]
[1735435134711,2.5962,192.93,192.9,12.91376013]
[1735435134911,2.5962,192.93,192.91,3.22]
[1735435135122,12.91376013,193.0,192.9,3.22]
[1735435135422,2.5956,192.97,192.9,3.22]
[1735435135618,12.91376013,193.0,192.9,3.22]
[1735435136524,2.5963,192.92,192.9,3.22]
[1735435137222,2.5963,192.92,192.77,29.34352822]
[1735435137223,2.5968,192.88,192.83,2.5973]
[1735435137525,2.5968,192.88,192.84,12.91376013]
[1735435138023,2.5968,192.88,192.85,1.6342]
[1735435138223,2.5968,192.88,192.86,3.22]
[1735435138522,2.5968,192.88,192.87,8.2706941]
[1735435139524,2.5967,192.89,192.87,8.2706941]
[1735435141723,2.5967,192.89,192.85,2.5972]
[1735435141926,2.5967,192.89,192.87,8.2706941]
[1735435143227,2.5956,192.97,192.89,2.5966]
[1735435143530,8.2706941,192.98,192.92,8.2706941]
[1735435143725,8.2706941,192.96,192.9,8.2706941]
[1735435144524,8.2706941,192.94,192.89,8.2706941]
[1735435144929,2.5964,192.92,192.89,8.2706941]
[1735435147124,8.2706941,192.95,192.89,8.2706941]
[1735435147429,2.5962,192.92,192.89,8.2706941]
[1735435151132,2.5961,192.94,192.91,8.2706941]
[1735435151430,8.2706941,192.98,192.91,8.2706941]
[1735435152530,2.5961,192.93,192.91,8.2706941]
[1735435152726,0.1348,192.93,192.91,8.2706941]
[1735435152931,8.2706941,192.98,192.91,8.2706941]
[1735435154036,2.5962,192.93,192.91,8.2706941]
[1735435155337,2.5963,192.92,192.89,1.4919]
[1735435157731,8.2706941,192.96,192.89,1.4919]
[1735435158027,8.2706941,192.96,192.89,9.7625941]
[1735435160430,2.5965,192.9,192.89,9.7625941]
[1735435161535,2.5965,192.9,192.89,1.4919]
[1735435172242,2.5965,192.9,192.88,1.5702]
[1735435172243,8.2706941,192.92,192.78,21.54882822]
[1735435172541,8.2706941,192.92,192.85,8.2706941]